bitfinex-derivatives/quotes_ETHF0:USTF0_20250123
["timestamp","ask_amount","ask_price","bid_price","bid_amount"]
[1737607797162,0.62514,3201.7,3201.5,10.2105]
[1737607797362,0.62515,3201.6,3201.5,10.2105]
[1737607799663,0.62517,3201.5,3201.4,3.2078]
[1737607800169,0.62516,3201.6,3201.4,3.2078]
[1737607800468,0.62516,3201.6,3201.4,3.83298]
[1737607800864,6.21867241,3202.1,3201.4,3.2078]
[1737607801063,0.62516,3201.6,3201.4,3.2078]
[1737607801271,0.62517,3201.5,3201.4,3.2078]
[1737607802562,6.21867241,3202.1,3201.4,3.2078]
[1737607802867,0.62516,3201.6,3201.4,3.2078]
[1737607803167,0.62514,3201.7,3201.4,3.83298]
[1737607803968,6.21867241,3202.1,3201.4,3.83298]
[1737607804166,0.62513,3201.7,3201.4,3.83298]
[1737607804872,0.62513,3201.8,3201.4,3.83298]
[1737607805072,6.21867241,3202.1,3201.4,3.2078]
[1737607805366,0.62516,3201.6,3201.4,3.2078]
[1737607805559,0.62517,3201.5,3201.4,3.2078]
[1737607805760,0.62519,3201.4,3201.3,0.00468545]
[1737607805966,10.91229923,3201.4,3200.5,3.2078]
[1737607806169,3.2078,3201.1,3200.7,0.62531]
[1737607806367,3.2078,3201.1,3200.6,40.8]
[1737607806561,0.62533,3200.7,3200.6,40.8]
[1737607807967,0.56015266,3200.9,3200.3,0.00468545]
[1737607808176,0.62538,3200.4,3200.3,0.00468545]
[1737607808471,0.62538,3200.4,3200.3,40.80468545]
[1737607808666,0.62538,3200.4,3199.6,3.2078]
[1737607808667,5.0,3200.4,3199.6,3.2078]
[1737607808871,0.62559,3199.4,3199.2,4.9637]
[1737607809066,3.00340417,3199.9,3199.3,40.8]
[1737607809263,3.2078,3200.2,3199.5,3.2078]
[1737607809472,3.83323,3200.2,3199.8,0.62549]
[1737607809672,3.2078,3200.2,3199.6,5.2568]
[1737607809872,3.83323,3200.2,3199.8,0.62549]
[1737607810169,3.2078,3200.2,3199.8,0.6255]
[1737607810373,0.62544,3200.1,3199.7,5.06188545]
[1737607810575,0.62549,3199.9,3199.7,5.06188545]
[1737607810775,0.6255,3199.8,3199.7,0.00468545]
[1737607812769,3.00340417,3199.9,3199.7,0.00468545]
[1737607812770,0.62549,3199.9,3199.7,0.00468545]
[1737607812967,0.6255,3199.8,3199.7,0.00468545]
[1737607813375,0.6255,3199.8,3199.7,40.80468545]
[1737607814266,3.8333,3199.8,3199.7,0.00468545]
[1737607814478,3.88577573,3199.8,3199.7,0.00468545]
[1737607814772,8.97527416,3199.8,3199.7,0.00468545]
[1737607816274,13.34977416,3199.8,3199.1,40.8]
[1737607816472,3.00340417,3199.2,3198.6,3.2078]
[1737607816773,0.62572,3198.7,3198.6,3.2078]
[1737607816971,0.62572,3198.8,3198.6,44.0078]
[1737607817269,3.00340417,3199.2,3198.6,44.0078]
[1737607817470,3.2078,3199.4,3198.6,44.0078]
[1737607817675,0.00468545,3199.0,3198.7,4.9988]
[1737607817877,0.00468545,3199.0,3198.7,5.62451]
[1737607818064,0.00468545,3199.0,3198.8,0.62569]
[1737607818267,0.00468545,3199.0,3198.9,4.8818]
[1737607818872,0.63034545,3199.0,3198.9,4.8818]
[1737607820483,0.63034545,3199.0,3198.4,0.00468545]
[1737607820484,0.62576,3198.5,3198.4,0.00468545]
[1737607820979,0.62576,3198.5,3198.4,40.80468545]
[1737607821673,0.62575,3198.6,3198.4,40.80468545]
[1737607822073,3.00340417,3198.8,3198.4,40.80468545]
[1737607822473,0.62575,3198.6,3198.4,40.80468545]
[1737607822776,0.62576,3198.5,3198.4,40.80468545]
[1737607824081,0.67826246,3198.5,3198.4,0.00468545]
[1737607825078,0.62576,3198.5,3198.4,0.00468545]
[1737607825377,0.67826496,3198.5,3198.4,0.00468545]
[1737607825973,0.62576,3198.5,3198.4,0.00468545]
[1737607826569,0.62576,3198.5,3198.4,40.80468545]
[1737607827276,3.2078,3198.6,3198.4,40.80468545]
[1737607827277,3.83355,3198.6,3198.4,40.80468545]
[1737607827581,0.62575,3198.6,3198.5,4.9507]
[1737607827782,3.00340417,3198.8,3198.5,4.9507]
[1737607827971,0.00468545,3199.0,3198.5,4.9507]
[1737607827972,0.62572,3198.7,3198.5,4.9507]
[1737607828175,0.62572,3198.7,3198.6,4.9843]
[1737607828374,0.00468545,3199.0,3198.8,0.62568]
[1737607828574,0.00468545,3199.0,3198.8,0.62569]
[1737607828878,0.00468545,3199.0,3198.9,0.62568]
[1737607829083,0.00468545,3199.0,3198.8,0.62569]
[1737607829267,0.00468545,3199.0,3198.6,13.1221]
[1737607829468,0.00468545,3199.0,3198.9,40.8]
[1737607829672,0.63034545,3199.0,3198.9,40.8]
[1737607830477,0.00468545,3199.0,3198.9,40.8]
[1737607830679,0.63034545,3199.0,3198.9,40.8]
[1737607831378,0.63034545,3199.0,3198.9,41.42568]
[1737607831379,0.00468545,3199.0,3198.9,41.42568]
[1737607831580,0.00468545,3199.0,3198.9,40.8]
[1737607831783,0.00468545,3199.0,3198.9,41.42568]
[1737607832680,0.00468545,3199.0,3198.9,40.8]
[1737607832881,0.63034545,3199.0,3198.9,40.8]
[1737607833284,0.00468545,3199.0,3198.6,8.1921]
[1737607833478,0.62572,3198.7,3198.6,8.1921]
[1737607833878,0.62572,3198.7,3198.6,48.9921]
[1737607834182,0.62571,3198.8,3198.6,48.9921]
[1737607834387,0.00468545,3199.0,3198.6,48.9921]
[1737607834789,0.00468545,3199.0,3198.8,0.6257]
[1737607835379,0.00468545,3199.0,3198.7,4.8913]
[1737607835586,0.62569,3198.9,3198.7,5.51701]
[1737607835980,0.63035545,3199.0,3198.7,4.8913]
[1737607836277,0.62569,3198.9,3198.7,4.8913]
[1737607836782,0.6257,3198.8,3198.7,4.8913]
[1737607838782,0.00468545,3199.0,3198.6,48.9921]
[1737607838987,0.62572,3198.7,3198.6,4.9843]
[1737607839290,0.62576,3198.5,3198.4,0.00468545]
[1737607841985,3.0075653,3198.7,3198.4,0.00468545]
[1737607842188,0.62575,3198.6,3198.4,0.00468545]
[1737607842390,0.62576,3198.5,3198.4,0.00468545]
[1737607846692,3.83356,3198.5,3198.4,0.00468545]
[1737607846892,8.82676,3198.5,3198.4,0.00468545]
[1737607847293,9.37918896,3198.5,3198.4,0.00468545]
[1737607847689,8.87928955,3198.5,3198.4,0.00468545]
[1737607847895,9.94050919,3198.5,3198.4,0.00468545]
[1737607848293,9.44062559,3198.5,3198.4,0.00468545]
[1737607848596,9.94046504,3198.5,3198.4,0.00468545]
[1737607849593,9.94046364,3198.5,3198.4,0.00468545]
[1737607849794,9.94046309,3198.5,3198.4,0.00468545]
[1737607849990,9.44062364,3198.5,3198.4,0.00468545]
[1737607850799,8.879286,3198.5,3198.4,0.00468545]
[1737607851097,8.82676,3198.5,3198.4,0.00468545]
[1737607851792,0.62576,3198.5,3198.4,0.00468545]
[1737607852295,0.62576,3198.5,3198.4,40.80468545]
[1737607852792,0.62574,3198.6,3198.4,40.80468545]
[1737607852997,0.62574,3198.6,3198.5,5.0586]
[1737607853793,0.00468545,3199.0,3198.5,5.0586]
[1737607854003,0.62573,3198.7,3198.6,4.7834]
[1737607856891,0.00468545,3199.0,3198.9,0.62568]
[1737607857096,0.00468545,3199.0,3198.7,4.9445]
[1737607857298,0.00468545,3199.0,3198.9,0.62568]
[1737607857798,0.6257,3198.8,3198.7,4.9445]
[1737607858800,0.00468545,3199.0,3198.9,0.62568]
[1737607860497,0.00468545,3199.0,3198.7,4.9445]
[1737607860695,0.00468545,3199.0,3198.7,5.57021]
[1737607860898,0.63035545,3199.0,3198.7,5.57021]
[1737607861297,0.00468545,3199.0,3198.7,4.9445]
[1737607861501,0.62572,3198.7,3198.6,7.9912]
[1737607861797,0.00468545,3199.0,3198.6,7.9912]
[1737607862100,0.00468545,3199.0,3198.9,0.62568]
[1737607862304,0.00468545,3199.0,3198.7,0.62571]
[1737607862506,0.00468545,3199.0,3198.6,7.9912]
[1737607863199,0.62572,3198.7,3198.6,7.9912]
[1737607863593,0.62569,3198.9,3198.7,0.62572]
[1737607863795,0.00468545,3199.0,3198.6,7.9912]
[1737607864008,0.00468545,3199.0,3198.9,0.62568]
[1737607864894,0.00468545,3199.0,3198.6,7.9912]
[1737607865095,0.62572,3198.7,3198.6,7.9912]
[1737607866600,0.62572,3198.7,3198.6,3.2078]
[1737607866906,0.62576,3198.5,3198.4,0.00468545]
[1737607867106,3.10623544,3198.5,3198.4,0.00468545]
[1737607867306,3.15875919,3198.5,3198.4,0.00468545]
[1737607867998,3.10623544,3198.5,3198.4,0.00468545]
[1737607868202,0.62576,3198.5,3198.4,0.00468545]
[1737607869211,3.2078,3198.7,3198.4,0.00468545]
[1737607869411,0.62575,3198.6,3198.4,0.00468545]
[1737607869698,3.2078,3198.7,3198.4,0.00468545]
[1737607869699,0.62576,3198.5,3198.4,0.00468545]
[1737607871003,3.10623544,3198.5,3198.4,0.00468545]
[1737607871608,3.15875801,3198.5,3198.4,0.00468545]
[1737607871808,0.62576,3198.5,3198.4,0.00468545]
[1737607873010,3.10623544,3198.5,3198.4,0.00468545]
[1737607874206,0.62576,3198.5,3198.4,0.00468545]
[1737607876114,0.62569,3198.9,3198.6,0.62573]
[1737607876309,0.63035545,3199.0,3198.7,10.0599]
[1737607876509,0.00468545,3199.0,3198.7,10.0599]
[1737607876710,0.6257,3198.8,3198.7,10.0599]
[1737607876904,0.62576,3198.5,3198.4,0.00468545]
[1737607877209,10.0481,3198.9,3198.4,0.00468545]
[1737607877405,0.00468545,3199.0,3198.4,3.21248545]
[1737607877602,0.00468545,3199.0,3198.8,3.2078]
[1737607877809,0.00468545,3199.0,3198.9,10.54048]
[1737607878202,0.00468545,3199.0,3198.9,51.34048]
[1737607879108,0.63034545,3199.0,3198.9,45.6744]
[1737607879702,0.63034545,3199.0,3198.9,4.8744]
[1737607880310,0.63034545,3199.0,3198.9,45.6744]
[1737607880698,0.63034545,3199.0,3198.9,40.8]
[1737607880904,0.62576,3198.5,3198.4,4.95988545]
[1737607881104,0.62575,3198.6,3198.4,5.58564545]
[1737607881310,0.62575,3198.6,3198.5,5.133]
[1737607882210,0.62574,3198.6,3198.5,5.75875]
[1737607882513,5.1625,3198.9,3198.5,5.75875]
[1737607882712,0.6257,3198.8,3198.5,5.75875]
[1737607883715,5.1625,3198.9,3198.5,5.75875]
[1737607883901,5.1625,3198.9,3198.5,5.133]
[1737607884105,0.62571,3198.8,3198.6,0.62574]
[1737607884301,0.00468545,3199.0,3198.5,5.133]
[1737607884508,0.00468545,3199.0,3198.9,0.62568]
[1737607885104,0.00468545,3199.0,3198.9,41.42568]
[1737607885311,0.63034545,3199.0,3198.9,40.8]
[1737607885514,0.00468545,3199.0,3198.9,40.8]
[1737607885707,0.00468545,3199.0,3198.9,41.42568]
[1737607893411,0.62555,3199.6,3199.4,0.62556]
[1737607893815,0.62557,3199.5,3199.3,0.62559]
[1737607894012,0.62563,3199.2,3199.0,0.62565]
[1737607894519,0.62567,3199.0,3198.7,3.2078]
[1737607894714,2.48516089,3199.4,3198.7,3.2078]
[1737607894916,0.00468545,3199.4,3198.8,40.8]
[1737607895213,0.00468545,3199.4,3199.3,0.6256]
[1737607898520,0.00468545,3199.4,3199.3,5.7428]
[1737607898820,1.56357,3200.2,3199.3,45.9172]
[1737607898821,0.62549,3199.9,3199.3,45.9172]
[1737607899019,5.2426,3200.4,3199.7,2.48047544]
[1737607899323,0.62532,3200.8,3200.6,0.62534]
[1737607899511,0.62532,3200.8,3200.3,3.2078]
[1737607899512,0.6253,3200.9,3200.7,0.62533]
[1737607900024,0.6253,3200.9,3200.7,40.8]
[1737607900218,0.62531,3200.8,3200.7,40.8]
[1737607901019,0.62529,3200.9,3200.7,41.42533]
[1737607901420,0.62529,3200.9,3200.7,41.42532]
[1737607901616,3.83307,3201.0,3200.7,40.8]
[1737607901822,0.62529,3200.9,3200.7,41.42532]
[1737607902018,3.2078,3201.0,3200.7,41.42532]
[1737607902019,0.62528,3201.0,3200.7,41.42532]
[1737607902334,0.00468545,3201.1,3200.7,40.8]
[1737607902526,0.00468545,3201.1,3201.0,0.62527]
[1737607905528,0.00468545,3201.1,3201.0,3.10574544]
[1737607908423,0.00468545,3201.1,3201.0,0.62527]
[1737607919038,0.00468545,3201.1,3200.7,44.0078]
[1737607919242,0.62529,3200.9,3200.7,44.0078]
[1737607919434,9.8445,3200.8,3200.7,44.63312]
[1737607920146,0.62995545,3201.1,3200.8,0.62531]
[1737607920344,0.62527,3201.0,3200.8,0.62531]
[1737607920834,0.00468545,3201.1,3201.0,0.62527]
[1737607923136,0.62528,3201.0,3200.7,44.0078]
[1737607923442,0.62531,3200.8,3200.7,44.0078]
[1737607924050,0.62528,3201.0,3200.8,0.6253]
[1737607924552,0.62531,3200.8,3200.7,40.8]
[1737607925446,0.62535,3200.6,3200.5,0.00468545]
[1737607925750,0.62546,3200.0,3199.9,3.2078]
[1737607925947,0.62546,3200.0,3199.9,44.0078]
[1737607926545,2.48047544,3200.4,3200.0,0.62545]
[1737607926742,2.48047544,3200.4,3199.9,44.0078]
[1737607926743,0.62541,3200.3,3200.1,0.62544]
[1737607927144,5.1449,3200.4,3200.3,0.6254]
[1737607927343,5.2109,3200.7,3199.9,44.0078]
[1737607927549,5.83624,3200.7,3200.0,14.7277]
[1737607927752,5.83624,3200.7,3200.5,0.62535]
[1737607928248,5.2109,3200.7,3200.6,0.62535]
[1737607928443,5.7702,3200.9,3200.7,0.62532]
[1737607928645,5.7702,3200.9,3200.7,3.83312]
[1737607928838,5.1449,3200.9,3200.8,40.8]
[1737607929142,5.1449,3200.9,3200.8,41.42531]
[1737607930053,0.62527,3201.0,3200.8,41.4253]
[1737607930347,0.00468545,3201.1,3200.8,40.8]
[1737607930549,0.00468545,3201.1,3201.0,0.62527]
[1737607931253,0.00468545,3201.1,3201.0,41.42527]
[1737607937551,0.00468545,3201.1,3201.0,40.8]
[1737607937751,0.62993545,3201.1,3201.0,40.8]
[1737607937952,0.62993545,3201.1,3200.9,0.62528]
[1737607938152,0.62528,3201.0,3200.8,0.6253]
[1737607938453,0.00468545,3201.1,3201.0,0.62527]
[1737607939667,0.00468545,3201.1,3201.0,5.53747]
[1737607941061,0.00468545,3201.1,3200.9,40.8]
[1737607941564,0.00468545,3201.1,3201.0,0.62527]
[1737607941964,0.00468545,3201.1,3200.9,40.8]
[1737607942165,0.62527,3201.0,3200.9,40.8]
[1737607950674,0.62531,3200.8,3200.7,3.2078]
[1737607951180,0.62531,3200.8,3200.7,44.0078]
[1737607953277,0.62531,3200.8,3200.7,40.8]
[1737607953675,8.11088545,3201.1,3200.7,40.8]
[1737607953877,0.62529,3200.9,3200.7,41.42531]
[1737607954077,0.62528,3201.0,3200.8,0.62531]
[1737607954585,0.62528,3201.0,3200.8,5.72049]
[1737607954880,8.11088545,3201.1,3200.8,5.0952]
[1737607955083,0.62528,3201.0,3200.8,5.72051]
[1737607955587,0.62527,3201.0,3200.8,5.72051]
[1737607955783,3.21248545,3201.1,3200.8,5.0952]
[1737607956082,3.83774545,3201.1,3200.9,0.62527]
[1737607956285,0.62529,3200.9,3200.8,5.0952]
[1737607956582,0.62531,3200.8,3200.7,40.8]
[1737607956888,10.84981,3200.8,3200.7,40.8]
[1737607957477,10.2245,3200.8,3200.4,5.1355]
[1737607957673,0.62536,3200.5,3200.4,5.1355]
[1737607957987,5.68827544,3200.7,3199.8,3.2078]
[1737607958188,2.48047544,3200.4,3199.8,3.83328]
[1737607958382,0.62547,3200.0,3199.8,3.83328]
[1737607958588,0.62547,3200.0,3199.9,40.8]
[1737607958781,0.62545,3200.1,3199.9,41.42547]
[1737607959180,0.62543,3200.2,3200.0,0.62546]
[1737607959380,0.62542,3200.3,3199.9,0.62548]
[1737607959678,0.62542,3200.3,3199.8,3.2078]
[1737607959883,0.62538,3200.5,3200.2,3.2078]
[1737607960079,3.2078,3200.7,3200.3,5.2707]
[1737607960284,0.62535,3200.6,3200.5,0.62536]
[1737607960988,0.62535,3200.6,3200.4,5.62747]
[1737607961187,0.62535,3200.6,3200.5,0.62536]
[1737607961881,0.62535,3200.6,3200.4,5.62747]
[1737607962287,0.62535,3200.6,3200.4,5.0021]
[1737607962488,0.62535,3200.6,3200.5,0.62536]
[1737607962881,0.62535,3200.6,3200.4,5.0021]
[1737607963293,0.62532,3200.8,3200.6,0.62534]
[1737607963582,12.88077544,3201.0,3200.6,3.83314]
[1737607963785,12.88077544,3201.0,3200.6,3.2078]
[1737607963984,0.62533,3200.7,3200.6,3.2078]
[1737607965991,12.88077544,3201.0,3200.5,0.62535]
[1737607966189,0.62535,3200.6,3200.5,3.83315]
[1737607966589,0.62535,3200.6,3200.5,3.2078]
[1737607969187,2.48047544,3200.7,3199.9,3.2078]
[1737607969490,5.68827544,3200.0,3199.6,0.00468545]
[1737607969688,3.10599544,3199.7,3199.6,0.00468545]
[1737607970084,0.6256,3199.3,3199.2,40.8]
[1737607970288,3.10607544,3199.3,3199.2,40.8]
[1737607972390,0.6256,3199.3,3199.2,40.8]
[1737607973687,0.6256,3199.3,3199.2,45.5824]
[1737607977192,0.62554,3199.7,3199.4,0.62557]
[1737607977390,3.2078,3200.1,3199.5,3.2078]
[1737607977695,0.62551,3199.8,3199.6,0.62553]
[1737607977882,0.62551,3199.8,3199.7,4.9133]
[1737607978489,0.62551,3199.8,3199.7,45.7133]
[1737607985207,5.68827544,3200.2,3199.5,3.2078]
[1737607985504,3.10601544,3199.6,3199.5,3.2078]
[1737607985899,2.48047544,3199.6,3199.2,4.7824]
[1737607986100,2.48047544,3199.6,3199.1,3.2078]
[1737607986101,0.62562,3199.2,3199.1,3.2078]
[1737607986305,0.62562,3199.2,3199.1,13.1017]
[1737607986502,0.62562,3199.2,3199.1,53.9017]
[1737607986700,0.62562,3199.2,3199.1,48.8331]
[1737607987907,0.62562,3199.2,3199.1,44.0078]
[1737607989104,0.62562,3199.2,3199.1,40.8]
[1737607989310,0.62562,3199.2,3198.9,0.00468545]
[1737607989311,0.62566,3199.0,3198.9,5.45e-06]
[1737607989502,2.48047544,3199.0,3198.3,3.2078]
[1737607989698,0.62578,3198.4,3198.3,44.0078]
[1737607990005,2.48047544,3198.9,3198.3,44.0078]
[1737607990205,0.62578,3198.4,3198.3,44.0078]
[1737607990805,0.62583,3198.1,3198.0,0.00468545]
[1737607991309,0.62583,3198.1,3198.0,40.80468545]
[1737607999722,5.68827544,3198.5,3198.1,0.62583]
[1737608000022,0.62578,3198.4,3198.1,0.62583]
[1737608000317,0.6258,3198.3,3198.1,0.62583]
[1737608000913,0.36859168,3198.2,3198.1,0.62583]
[1737608001208,0.67173195,3198.2,3198.1,0.62583]
[1737608001812,1.29754195,3198.2,3198.0,41.43053545]
[1737608002011,0.30314027,3198.1,3198.0,41.43053545]
[1737608002311,0.67173195,3198.1,3198.0,41.43053545]
[1737608002718,0.67173195,3198.1,3198.0,40.80468545]
[1737608003019,1.29756195,3198.1,3198.0,40.80468545]
[1737608004011,1.29756195,3198.1,3198.0,0.00468545]
[1737608004411,11.81646195,3198.1,3198.0,0.00468545]
[1737608006518,0.99442168,3198.1,3198.0,0.00468545]
[1737608006820,1.29690227,3198.1,3198.0,0.00468545]
[1737608007020,0.67107227,3198.1,3198.0,0.00468545]
[1737608007207,0.67107227,3198.1,3198.0,0.63053545]
[1737608007415,0.67107227,3198.1,3198.0,3.83833545]
[1737608007918,0.4752601,3198.2,3198.0,3.21248545]
[1737608008221,3.2078,3198.5,3198.4,0.62578]
[1737608008421,3.2078,3198.5,3198.4,41.42578]
[1737608011222,0.62574,3198.6,3198.4,41.42578]
[1737608011526,0.62574,3198.6,3198.5,10.1687]
[1737608012729,5.2713,3198.7,3198.0,44.01248545]
[1737608013023,0.62581,3198.2,3198.1,10.2598]
[1737608016921,0.62581,3198.2,3198.1,10.88563]
[1737608017125,0.62581,3198.2,3198.1,10.2598]
[1737608018025,1.27100126,3198.2,3198.1,10.2598]
[1737608018926,0.64519126,3198.2,3198.1,10.88563]
[1737608020123,0.29817052,3198.2,3198.1,10.88563]
[1737608021623,0.62577,3198.5,3198.1,10.2598]
[1737608021823,0.62581,3198.3,3198.1,10.88562]
[1737608022022,0.29829466,3198.2,3198.1,10.88563]
[1737608022218,0.29831709,3198.2,3198.1,10.2598]
[1737608022421,0.29831709,3198.2,3198.1,10.88563]
[1737608023619,2.77879253,3198.2,3198.0,44.01248545]
[1737608023823,5.81444709,3198.1,3198.0,3.21248545]
[1737608025026,5.81444709,3198.1,3197.2,5.1412]
[1737608025027,0.62599,3197.3,3197.2,5.1412]
[1737608025230,0.62603,3197.1,3197.0,3.2078]
[1737608025428,3.40482253,3197.1,3197.0,44.0078]
[1737608025932,3.40468478,3197.1,3197.0,44.0078]
[1737608026328,3.40468478,3197.1,3197.0,40.8]
[1737608026929,0.62609,3196.8,3196.7,0.00468545]
[1737608027129,0.62619,3196.3,3196.2,6.45651307]
[1737608027337,3.40484478,3196.3,3196.2,5.28122204]
[1737608028029,2.77789927,3196.3,3195.9,40.8]
[1737608028227,0.29742383,3196.2,3195.9,40.8]
[1737608028433,0.92333322,3196.1,3195.9,40.8]
[1737608028734,0.29709322,3196.0,3195.9,40.8]
[1737608028934,2.77756866,3196.0,3195.9,40.8]
[1737608029132,3.40381866,3196.0,3195.9,40.8]
[1737608029929,3.10672544,3196.0,3195.9,40.8]
[1737608030134,3.40349113,3196.0,3195.9,40.8]
[1737608030530,0.92301569,3196.0,3195.9,40.8]
[1737608031029,0.29676569,3196.0,3195.9,41.42626]
[1737608031633,3.2078,3196.4,3196.2,0.62621]
[1737608031834,0.29637142,3196.3,3196.1,0.62622]
[1737608032140,0.2963695,3196.2,3196.1,0.62622]
[1737608032935,0.2963695,3196.2,3196.1,41.42622]
[1737608033434,0.9225795,3196.2,3196.1,40.8]
[1737608033636,0.2963695,3196.2,3195.7,3.2078]
[1737608033937,3.10675544,3195.8,3195.7,3.2078]
[1737608034137,3.40312494,3195.8,3195.7,44.0078]
[1737608034740,3.40312494,3195.8,3195.7,3.2078]
[1737608035931,2.77684494,3195.8,3195.6,40.80314879]
[1737608036132,0.9226695,3195.7,3195.6,0.00314879]
[1737608036330,0.9220519,3195.7,3195.6,0.00314879]
[1737608037045,5.9220519,3195.7,3195.6,0.00314879]
[1737608037243,5.9220519,3195.7,3195.2,3.2078]
[1737608037244,11.82808919,3195.7,3195.2,3.2078]
[1737608037444,3.10685544,3195.3,3195.2,3.2078]
[1737608037647,0.9221319,3195.3,3195.2,3.2078]
[1737608038337,0.92170758,3195.3,3195.2,3.2078]
[1737608038531,0.29532758,3195.3,3195.2,44.0078]
[1737608038738,0.92170758,3195.3,3195.2,44.0078]
[1737608039844,0.92170758,3195.3,3195.2,40.8]
[1737608040447,0.92152582,3195.3,3195.2,40.8]
[1737608040839,0.29514582,3195.3,3194.8,0.38016]
[1737608041044,3.10693544,3194.9,3194.8,0.38016]
[1737608041241,3.10693544,3194.9,3193.6,2.48047544]
[1737608041242,1.56623,3194.8,3193.6,0.62671]
[1737608041444,0.62671,3193.7,3193.5,0.4965124]
[1737608041640,2.48047544,3193.9,3193.5,0.4965124]
[1737608041942,3.10719544,3193.6,3193.5,0.4965124]
[1737608042142,2.48047544,3193.9,3193.5,0.4965124]
[1737608042343,2.48047544,3193.9,3193.8,0.62668]
[1737608042539,0.004693,3194.0,3193.8,0.62668]
[1737608042844,0.004693,3194.0,3193.5,0.4965124]
[1737608043039,0.004693,3194.0,3193.8,0.62666]
[1737608043240,0.004693,3194.0,3193.7,0.62668]
[1737608043451,0.004693,3194.0,3193.8,0.62668]
[1737608043746,0.004693,3194.0,3193.7,0.62669]
[1737608043944,0.004693,3194.0,3193.6,0.62672]
[1737608044150,0.631333,3194.0,3193.6,0.62672]
[1737608044447,0.004693,3194.0,3193.5,0.4965124]
[1737608044950,0.004693,3194.0,3193.7,0.62669]
[1737608045245,0.004693,3194.0,3193.9,40.8]
[1737608048751,0.631333,3194.0,3193.9,40.8]
[1737608050757,0.004693,3194.0,3193.9,40.8]
[1737608050957,0.631333,3194.0,3193.9,45.7869]
[1737608051351,0.2996753,3194.0,3193.9,45.7869]
[1737608051557,0.9263153,3194.0,3193.9,45.7869]
[1737608052456,0.92666728,3194.0,3193.9,45.7869]
[1737608052852,0.3000282,3194.0,3193.9,45.7869]
[1737608053460,0.62663,3194.1,3193.9,45.7869]
[1737608054257,3.2078,3194.2,3193.9,45.7869]
[1737608054453,0.62662,3194.1,3193.9,46.41356]
[1737608054653,0.62662,3194.1,3193.9,45.7869]
[1737608054962,3.2078,3194.2,3193.9,45.7869]
[1737608055171,3.83441,3194.2,3193.9,46.41354]
[1737608055354,0.004693,3194.4,3193.9,48.9947]
[1737608055555,0.004693,3194.4,3194.3,0.62658]
[1737608055757,0.004693,3194.4,3194.2,0.6266]
[1737608056361,0.004693,3194.4,3193.9,48.9947]
[1737608056760,0.004693,3194.4,3194.2,0.62659]
[1737608056961,0.004693,3194.4,3194.1,0.62661]
[1737608057161,0.004693,3194.4,3194.2,0.62658]
[1737608058663,0.004693,3194.4,3193.9,48.9947]
[1737608059066,0.004693,3194.4,3194.2,0.62658]
[1737608059365,0.004693,3194.4,3194.3,0.62658]
[1737608059568,0.004693,3194.4,3193.9,48.9947]
[1737608060063,0.004693,3194.4,3194.2,0.62658]
[1737608060271,0.631263,3194.4,3194.2,0.62658]
[1737608061169,0.004693,3194.4,3194.3,0.62658]
[1737608061860,0.004693,3194.4,3194.3,3.83438]
[1737608065361,3.2078,3195.4,3194.3,49.0078]
[1737608065565,3.2078,3195.4,3195.3,0.62638]
[1737608065762,3.5002502,3195.4,3195.3,0.62638]
[1737608066163,3.5002502,3195.4,3195.3,41.42638]
[1737608066867,3.2078,3195.4,3195.3,41.42638]
[1737608067062,0.004693,3195.7,3195.3,40.8]
[1737608067370,0.631013,3195.7,3195.5,0.62633]
[1737608067558,0.631013,3195.7,3195.4,0.00216392]
[1737608067559,0.004693,3195.7,3195.4,0.00216392]
[1737608067764,0.004693,3195.7,3195.6,0.62632]
[1737608068461,0.004693,3195.7,3195.4,5.02206392]
[1737608068763,0.62634,3195.5,3195.4,0.00216392]
[1737608071672,0.62633,3195.6,3195.4,0.62851392]
[1737608072167,7.36917024,3195.7,3195.4,0.00216392]
[1737608072360,0.62634,3195.6,3195.4,0.62851392]
[1737608072563,7.36917024,3195.7,3195.4,0.62851392]
[1737608072564,7.36917024,3195.7,3195.4,0.00216392]
[1737608072773,0.62634,3195.5,3195.4,0.00216392]
[1737608074068,7.36917024,3195.7,3195.4,0.62852392]
[1737608074369,3.11808024,3195.7,3195.5,0.62633]
[1737608075371,0.004693,3195.7,3195.4,0.00216392]
[1737608075575,0.004693,3195.7,3195.6,0.62632]
[1737608076364,0.004693,3195.7,3195.5,5.1607]
[1737608076673,2.48707724,3196.6,3195.8,1.56571]
[1737608076975,2.48707724,3196.9,3196.0,3.2078]
[1737608077175,2.48707724,3196.9,3196.8,0.62609]
[1737608077374,3.2078,3197.1,3196.1,4.05264724]
[1737608077570,3.2078,3197.1,3196.3,1.56547]
[1737608077876,3.11309724,3197.2,3197.0,0.62605]
[1737608078971,0.630683,3197.4,3196.7,10.0233]
[1737608079176,0.004693,3197.4,3197.3,0.62599]
[1737608079873,0.004693,3197.4,3197.3,41.42599]
[1737608083069,0.004693,3197.4,3197.0,0.004693]
[1737608083270,2.48707724,3197.3,3197.1,3.2078]
[1737608083582,0.004693,3197.4,3197.1,3.2078]
[1737608083879,0.630663,3197.4,3197.1,3.83382]
[1737608084176,0.004693,3197.4,3197.1,3.2078]
[1737608084377,0.004693,3197.4,3197.3,0.62599]
[1737608085378,0.004693,3197.4,3197.3,41.42599]
[1737608093990,2.48707724,3198.2,3198.0,0.62585]
[1737608094785,3.11289724,3198.2,3198.0,0.62585]
[1737608095088,2.48707724,3198.2,3198.0,0.62585]
[1737608096288,3.11290724,3198.2,3198.0,0.62585]
[1737608098395,2.48707724,3198.2,3198.1,0.62583]
[1737608099187,4.953293,3198.4,3198.3,0.6258]
[1737608099490,0.004693,3198.4,3198.3,0.6258]
[1737608099683,0.004693,3198.4,3198.3,41.4258]
[1737608102394,0.004693,3198.4,3198.3,40.8]
[1737608102592,0.62583,3198.1,3198.0,3.2078]
[1737608102792,0.62583,3198.1,3198.0,3.83365]
[1737608102987,5.2165,3198.3,3198.2,0.62581]